{"text_format":"1","workbook":"xlsx","n_sheets":6,"sheets":["MENU","R005-C15","DATI-CONDOMINIO","MODULO-RICEVUTA","REGISTRO","NOTA"],"not_rendered":{"charts":0,"images":0,"macros":1,"external_links":0,"defined_names":14,"comments":1,"pivot_tables":0},"unopened":[],"bounds":{"document_bytes":16777216,"sheet_cells":100000,"rows_first":2000,"rows_last":500,"rows_between":2000,"halvings":0,"cell_chars":16384,"cell_head_chars":4096},"cells_cut":0,"cells_raw":0,"read":"whole","date_system":"1900"}

{"sheet":"MENU","index":0,"n_rows":31,"n_cols":14,"rows_kept":31,"cut":false,"hidden":false,"merged":[[15,5,19,25],[4,11,5,24],[21,5,28,25],[30,5,31,25],[2,11,3,12]]}
[]
[]
[null,null,null,null,null,null,"PROCEDURA EXCEL\nrealizzata da",null,null,null,null,"GQQC",null,"UTILITY per GESTIONE QUIETANZE QUOTE CONDOMINIALI"]
[null,null,null,null,null,null,"ing. Pietro CHIEFARI",null,null,null,null,null,null,"versione 2.02"]
[null,null,null,null,null,null,"Viale CUTURELLA 2/D - 88068 SOVERATO (CZ)",null,null,null,null,"www.piasoft.it"]
[null,null,null,null,null,null,"piasoft@piasoft.it"]
[]
[]
[]
[]
[]
[]
[]
[]
[]
[null,null,null,null,null,"I pulsanti di sopra attivano e rendono visibili i seguenti fogli EXCEL:\nDATI-CONDOMINIO   - Riportare i dati previsti secondo le indicazioni fornite dalle intestazioni delle colonne.\nNOTA                               - Riporta alcune indicazioni sulla quietanza.\nMODULO-RICEVUTA  - È riportato il modulo della ricevuta o quietanza.\nREGISTRO                       - Riportati i dati relativi agli incassi delle quote condominiali secondo le indicazioni fornite dalle intestazioni delle colonne.\n\n"]
[]
[]
[]
[]
[]
[null,null,null,null,null,"Per operare occorre riportare sul foglio \"REGISTRO\" i dati della ricevuta che si intende compilare, quindi lanciare la funzione di compilazione e indicare la registrazione della quale si vuole la ricevuta . \nQuesta crea un nuovo foglio contenente la ricevuta e lo visualizza in anteprima di stampa. Ritornando al foglio \"MENU\" il foglio ricevuta viene nascosto.\nSi può procedere alla stampa o chiudere l'anteprima rimandando la stampa ad un momento successivo.\nL'applicazione assegna ai fogli delle ricevute una etichetta seguendo la seguente regola: la prima lettera è sempre R seguita dal numero di ricevuta specificato nel foglio \"REGISTRO\", da un trattino e dal codice del condomino che ha pagato, per come riportato nel foglio \"DATI-CONDOMINIO\". \nI fogli delle ricevute, una volta creati, possono essere rinominati dall'utilizzatore a sua libera scelta, lasciati nella cartella per costituire un archivio delle stesse, eliminate dopo la stampa o trasferite in un altro file EXCEL. \nÈ inoltre possibile compilare le ricevute prima del pagamento, basta inserire nel registro gli importi da pagare."]
[]
[]
[]
[]
[]
[]
[]
[]
[null,null,null,null,null,"La procedura è realizzata per un numero massimo di 1.000 registrazioni. All'occorrenza è possibile inserire nel prospetto del foglio \"REGISTRO\" ulteriori ri righe fino ad un massimo di 1.000.\nÈ possibile riportare sul foglio \"REGISTRO\" più di una registrazione e successivamente compilare le corrispondenti ricevute in sequenza.\n\n"]

{"sheet":"R005-C15","index":1,"n_rows":28,"n_cols":21,"rows_kept":28,"cut":false,"hidden":true,"merged":[[15,10,15,21],[16,10,16,21],[17,1,17,5],[18,1,18,4],[18,9,18,19],[18,20,18,22],[0,7,27,7],[1,1,1,5],[7,12,7,13],[7,17,7,19],[10,1,10,5],[10,15,10,21],[11,1,12,5],[11,15,11,21],[12,15,12,21],[13,15,13,21],[19,1,19,4],[19,9,19,19],[19,20,19,22],[20,1,20,4],[20,9,20,19],[20,20,20,22],[27,9,27,15],[27,16,27,22],[21,1,21,4],[21,9,21,19],[21,20,21,22],[22,1,22,4],[22,9,22,19],[22,20,22,22],[23,3,23,4],[23,17,23,19],[23,20,23,22],[25,1,25,5],[25,12,25,22]]}
[null,null,null,null,null,null,null,"& ----------------------------------------------------------------------------------------------------------------------------------------------------------------------------------"]
[null,{"$f":"J2","v":"Condominio \"PIPPO PIPPO\""},null,null,null,null,null,null,null,{"$f":"'DATI-CONDOMINIO'!A5","v":"Condominio \"PIPPO PIPPO\""}]
[null,{"$f":"J3","v":"Via GIULIO CESARE, 44"},null,null,null,null,null,null,null,{"$f":"'DATI-CONDOMINIO'!A6","v":"Via GIULIO CESARE, 44"}]
[null,{"$f":"J4","v":"88068 - SOVERATO (CZ)"},null,null,null,null,null,null,null,{"$f":"'DATI-CONDOMINIO'!A7","v":"88068 - SOVERATO (CZ)"}]
[null,{"$f":"J5","v":"CF: 80000000796"},null,null,null,null,null,null,null,{"$f":"'DATI-CONDOMINIO'!A8","v":"CF: 80000000796"}]
[]
[]
[null,"MATRICE della RICEVUTA n.",null,{"$f":"M8","v":"05-2021"},"Data",{"$f":"R8","v":"2021-05-16"},null,null,null,null,"RICEVUTA n.",null,"05-2021",null,null,null,"Data ","2021-05-16"]
[]
[]
[null,"Condomino",null,null,null,null,null,null,null,"Ricevute dal Condomino",null,null,null,null,null,"Condomino-15"]
[null,{"$f":"P11","v":"Condomino-15"},null,null,null,null,null,null,null,null,null,null,null,null,null,"Via GIULIO CESARE, 44"]
[null,null,null,null,null,null,null,null,null,null,null,null,null,null,null,"88068 - SOVERATO (CZ)"]
[]
[]
[null,"IMPORTO TOTALE PAGAMENTO",null,null,{"$f":"F24","v":23.78},null,null,null,null,"€",{"$f":"IF(U24<>0,NumeroInLettere(U24,2),\"\")","v":"ventitre / 78"}]
[]
[null,"Causale",null,null,null,null,null,null,null,"per"]
[null,{"$f":"J19","v":"rata maggio 2021"},null,null,null,{"$f":"U19","v":23.78},null,null,null,"rata maggio 2021",null,null,null,null,null,null,null,null,null,null,23.78]
[null,{"$f":"J20","v":0},null,null,null,{"$f":"U20","v":0}]
[null,{"$f":"J21","v":0},null,null,null,{"$f":"U21","v":0}]
[null,{"$f":"J22","v":0},null,null,null,{"$f":"U22","v":0}]
[null,{"$f":"J23","v":0},null,null,null,{"$f":"U23","v":0}]
[null,null,null,"TOTALE",null,{"$f":"SUM(F19:F23)","v":23.78},null,null,null,null,null,null,null,null,null,null,null,"TOTALE RICEVUTO",null,null,{"$f":"SUM(U19:W23)","v":23.78}]
[null,"Metodo di Pagamento",null,null,null,null,null,null,null,"Metodo di Pagamento"]
[null,{"$f":"M26","v":"contante"},null,null,null,null,null,null,null,null,null,null,"contante"]
[]
[null,null,null,null,null,null,null,null,null,"firma dell'Amministratore",null,null,null,null,null,null,"La presente ricevuta viene rilasciata s.b.f. degli assegni e con riserva di esigere ogni altra somma che risultasse dovuta in seguito a rendiconto consuntivo, nuovi accertamenti, nuove delibere dell'Assemblea o rate pregresse non pagate."]

{"sheet":"DATI-CONDOMINIO","index":2,"n_rows":111,"n_cols":7,"rows_kept":111,"cut":false,"hidden":true,"merged":[[0,0,0,5]]}
["È consentito variare solo i dati delle celle con sfondo bianco.",null,null,null,null,null,0]
[]
[]
[]
["Condominio \"PIPPO PIPPO\""]
["Via GIULIO CESARE, 44"]
["88068 - SOVERATO (CZ)"]
["CF: 80000000796"]
["Codice\nCond.","DENOMINAZIONE CONDOMINO","INDIRIZZO","CAP","CITTÀ","PROVINCIA"]
[]
["C01","Condomino-01","Via TORINO, 20","83100","AVELLINO","AV"]
["C02","Condomino-02","Via GIULIO CESARE, 44",88068,"SOVERATO","CZ"]
["C03","Condomino-03","Via GIULIO CESARE, 44",88068,"SOVERATO","CZ"]
["C04","Condomino-04","Via GIULIO CESARE, 44",88068,"SOVERATO","CZ"]
["C05","Condomino-05","Via GIULIO CESARE, 44",88068,"SOVERATO","CZ"]
["C06","Condomino-06","Via GIULIO CESARE, 44",88068,"SOVERATO","CZ"]
["C07","Condomino-07","Via GIULIO CESARE, 44",88068,"SOVERATO","CZ"]
["C08","Condomino-08","Via TIRANA, 47","87100","COSENZA","CS"]
["C09","Condomino-09","Via GIULIO CESARE, 44",88068,"SOVERATO","CZ"]
["C10","Condomino-10","Via GIULIO CESARE, 44",88068,"SOVERATO","CZ"]
["C11","Condomino-11","Via GIULIO CESARE, 44",88068,"SOVERATO","CZ"]
["C12","Condomino-12","Viale dei GLICINI, 22",88068,"SOVERATO","CZ"]
["C13","Condomino-13","Via MILANO, 37",88068,"SOVERATO","CZ"]
["C14","Condomino-14","Via GIULIO CESARE, 44",88068,"SOVERATO","CZ"]
["C15","Condomino-15","Via GIULIO CESARE, 44",88068,"SOVERATO","CZ"]
["C16","Condomino-16","Via G. MAMELI, 34","47921","RIMINI","RN"]
["C17","Condomino-17","Via GIULIO CESARE, 44",88068,"SOVERATO","CZ"]
["C18","Condomino-18","Via GIULIO CESARE, 44",88068,"SOVERATO","CZ"]
["C19","Condomino-19","Via GIULIO CESARE, 44",88068,"SOVERATO","CZ"]
["C20","Condomino-20","Via GIULIO CESARE, 44",88068,"SOVERATO","CZ"]
["C21","Condomino-21","Via GIULIO CESARE, 44",88068,"SOVERATO","CZ"]
["C22","Condomino-22","Via GIULIO CESARE, 44",88068,"SOVERATO","CZ"]
["C23","Condomino-23","Via GIULIO CESARE, 44",88068,"SOVERATO","CZ"]
["C24","Condomino-24","Via GENOVA, 14","10136","TORINO","TO"]
["C25"]
["C26",""]
["C27",""]
["C28",""]
["C29",""]
["C30",""]
["C31",""]
["C32",""]
["C33",""]
["C34",""]
["C35",""]
["C36",""]
["C37",""]
["C38",""]
["C39",""]
["C40",""]
["C41",""]
["C42",""]
["C43",""]
["C44",""]
["C45",""]
["C46",""]
["C47",""]
["C48",""]
["C49",""]
["C50",""]
["C51",""]
["C52",""]
["C53",""]
["C54",""]
["C55",""]
["C56",""]
["C57",""]
["C58",""]
["C59",""]
["C60",""]
["C61",""]
["C62",""]
["C63",""]
["C64",""]
["C65",""]
["C66",""]
["C67",""]
["C68",""]
["C69",""]
["C70",""]
["C71",""]
["C72",""]
["C73",""]
["C74",""]
["C75",""]
["C76",""]
["C77",""]
["C78",""]
["C79",""]
["C80",""]
["C81",""]
["C82",""]
["C83",""]
["C84",""]
["C85",""]
["C86",""]
["C87",""]
["C88",""]
["C89",""]
["C90",""]
["C91",""]
["C92",""]
["C93",""]
["C94",""]
["C95",""]
["C96",""]
["C97",""]
["C98",""]
["C99",""]
[null,"TOTALI",{"$f":"SUM(C11:C109)","v":0},{"$f":"SUM(D11:D109)","v":1761360},0,0]
[0,null,null,null,null,null,0]

{"sheet":"MODULO-RICEVUTA","index":3,"n_rows":28,"n_cols":21,"rows_kept":28,"cut":false,"hidden":true,"merged":[[27,9,27,15],[27,16,27,22],[21,1,21,4],[21,9,21,19],[21,20,21,22],[22,1,22,4],[22,9,22,19],[22,20,22,22],[23,3,23,4],[23,17,23,19],[23,20,23,22],[25,1,25,5],[25,12,25,22],[19,1,19,4],[19,9,19,19],[19,20,19,22],[20,1,20,4],[20,9,20,19],[20,20,20,22],[15,10,15,21],[16,10,16,21],[17,1,17,5],[18,1,18,4],[18,9,18,19],[18,20,18,22],[0,7,27,7],[1,1,1,5],[7,12,7,13],[7,17,7,19],[10,1,10,5],[10,15,10,21],[11,1,12,5],[11,15,11,21],[12,15,12,21],[13,15,13,21]]}
[null,null,null,null,null,null,null,"& ----------------------------------------------------------------------------------------------------------------------------------------------------------------------------------"]
[null,{"$f":"J2","v":"Condominio \"PIPPO PIPPO\""},null,null,null,null,null,null,null,{"$f":"'DATI-CONDOMINIO'!A5","v":"Condominio \"PIPPO PIPPO\""}]
[null,{"$f":"J3","v":"Via GIULIO CESARE, 44"},null,null,null,null,null,null,null,{"$f":"'DATI-CONDOMINIO'!A6","v":"Via GIULIO CESARE, 44"}]
[null,{"$f":"J4","v":"88068 - SOVERATO (CZ)"},null,null,null,null,null,null,null,{"$f":"'DATI-CONDOMINIO'!A7","v":"88068 - SOVERATO (CZ)"}]
[null,{"$f":"J5","v":"CF: 80000000796"},null,null,null,null,null,null,null,{"$f":"'DATI-CONDOMINIO'!A8","v":"CF: 80000000796"}]
[]
[]
[null,"MATRICE della RICEVUTA n.",null,{"$f":"M8","v":0},"Data",{"$f":"R8","v":"00:00:00"},null,null,null,null,"RICEVUTA n.",null,null,null,null,null,"Data "]
[]
[]
[null,"Condomino",null,null,null,null,null,null,null,"Ricevute dal Condomino"]
[null,{"$f":"P11","v":0}]
[]
[]
[]
[null,"IMPORTO TOTALE PAGAMENTO",null,null,{"$f":"F24","v":0},null,null,null,null,"€",{"$f":"IF(U24<>0,NumeroInLettere(U24,2),\"\")","v":""}]
[]
[null,"Causale",null,null,null,null,null,null,null,"per"]
[null,{"$f":"J19","v":0},null,null,null,{"$f":"U19","v":0}]
[null,{"$f":"J20","v":0},null,null,null,{"$f":"U20","v":0}]
[null,{"$f":"J21","v":0},null,null,null,{"$f":"U21","v":0}]
[null,{"$f":"J22","v":0},null,null,null,{"$f":"U22","v":0}]
[null,{"$f":"J23","v":0},null,null,null,{"$f":"U23","v":0}]
[null,null,null,"TOTALE",null,{"$f":"SUM(F19:F23)","v":0},null,null,null,null,null,null,null,null,null,null,null,"TOTALE RICEVUTO",null,null,{"$f":"SUM(U19:W23)","v":0}]
[null,"Metodo di Pagamento",null,null,null,null,null,null,null,"Metodo di Pagamento"]
[null,{"$f":"M26","v":0}]
[]
[null,null,null,null,null,null,null,null,null,"firma dell'Amministratore",null,null,null,null,null,null,"La presente ricevuta viene rilasciata s.b.f. degli assegni e con riserva di esigere ogni altra somma che risultasse dovuta in seguito a rendiconto consuntivo, nuovi accertamenti, nuove delibere dell'Assemblea o rate pregresse non pagate."]

{"sheet":"REGISTRO","index":4,"n_rows":51,"n_cols":15,"rows_kept":51,"cut":false,"hidden":true,"merged":[]}
[]
[]
[]
[]
[]
[]
[]
[{"$f":"'MODULO-RICEVUTA'!J2","v":"Condominio \"PIPPO PIPPO\""}]
["REGISTRO INCASSO QUOTE CONDOMINIALI"]
["N°\nRegistr.","n°\nRicevuta","Data\nEmissione","Codice\nCondomino","1a Causale","Importo\n1a Caus.","2a Causale","Importo\n2a Caus.","3a Causale","Importo\n3a Caus.","4a Causale","Importo\n4a Caus.","5a Causale","Importo\n5a Caus.","Metodo di pagamento"]
[1,"01-2021","2021-01-10","C15","conguaglio 2020",56.89,"rata gennaio 2021 ",23.78,null,null,null,null,null,null,"contante"]
[2,"02-2021","2021-02-11","C21","rata febbraio 2021",34.78,null,null,null,null,null,null,null,null,"assegno UNICREDIT 3284571025"]
[3,"03-2021","2021-04-14","C01","arretrati 2018",150,null,null,null,null,null,null,null,null,"bonifico"]
[4,"04-2021","2021-05-15","C03","rata aprile 2021  appartamento",23.78,"rata aprile 2021  garage",10.54,null,null,null,null,null,null,"contante"]
[5,"05-2021","2021-05-16","C15","rata maggio 2021",23.78,null,null,null,null,null,null,null,null,"contante"]
[]
[]
[]
[]
[]
[]
[]
[]
[]
[]
[]
[]
[]
[]
[]
[]
[]
[]
[]
[]
[]
[]
[]
[]
[]
[]
[]
[]
[]
[]
[]
[]
[]
[]
[]
["Fine"]

{"sheet":"NOTA","index":5,"n_rows":4,"n_cols":6,"rows_kept":4,"cut":false,"hidden":true,"merged":[[3,5,22,25]]}
[]
[null,null,null,null,null,"Note sulla Ricevuta o Quietanza di pagamento."]
[]
[null,null,null,null,null,"La ricevuta di pagamento attesta che una persona ha pagato e un'altra ha incassato una determinata somma di denaro.\nAl momento del pagamento al condomino che paga l'amministratore deve essere fornita la ricevuta che attesti quanto versato; quello alla quietanza, infatti, è un vero e proprio diritto riconosciuto dalla legge (art. 1199 c.c.).\nNella ricevuta, l'amministratore o chi per lui dovranno indicare a che titolo sono versate le somme di denaro [la c.d. imputazione di pagamento].\nCosì, ad esempio, se il condomino corrisponde all'amministratore le quote relative ad una o più mensilità quest'ultimo dovrà indicare nella ricevuta di pagamento i mesi di riferimento delle somme versate. Se, invece, il condomino si limita a pagare una somma forfettaria l'amministratore potrà indicare un versamento di un acconto o in conto di qualcosa.\nSi rammenta l'art. 1195 c.c. per il quale: chi, avendo più debiti, accetta una quietanza nella quale il creditore ha dichiarato di imputare il pagamento a uno di essi, non può pretendere un'imputazione diversa, se non vi è stato dolo da parte del creditore.\nIn pratica nell'assenza di un'imputazione del pagamento da parte del condomino debitore il creditore (ovvero il condominio, nella persona dell'amministratore) può imputare autonomamente ad uno dei debiti senza che il primo, eccezion fatta per i casi di malafede del secondo, possa obiettare nulla. \nDelle ricevute di pagamento è sempre bene conservare copia per tutto il tempo necessario alla maturazione della prescrizione dei relativi crediti.\nNel caso di versamento tramite bonifico bancario l'imputazione del pagamento corrisponde alla causale dello stesso bonifico.\nAnche nel caso di bonifico il condomino ha diritto alla quietanza firmata dall'amministratore, in quanto la ricevuta del bonifico è solamente un'attestazione che la banca ha eseguito l'operazione ordinata. Nel caso di bonifico, la successiva ricevuta può correggere eventuali errori o vaghezze nella causale indicata dal condomino ordinante.  Il condomino che riceve la ricevuta con le correzioni accetta tali correzioni se contesta quanto ricevuto. \nSe l'amministratore non rilascia ricevuta di pagamento, in primis il condomino deve comunque sincerarsi che le somme siano inserite nella contabilità del condominio – nei modi e nei termini di legge – chiedendo accesso alla documentazione condominiale ; così non fosse si avrebbe il reato di appropriazione indebita a carico dell'amministratore.\nQualora fosse tutto in regola, il condomino dovrebbe inviare all'amministratore una lettera di diffida al fine di ottenere quanto dovuto e nel caso di perduranza attivarsi per chiedere la revoca (eventualmente anche in via giudiziale),  per irregolarità nella gestione.\n\n\n\n\n\n\n"]